fUST/lending_fUST_20251012
["ID","MTS","AMOUNT","RATE_DAILY","PERIOD"]
[391000383,1760279132054,-503.43484774,0.00021,2]
[391000385,1760279144168,-150.43484774,0.00021,2]
[391000398,1760279341116,8733.06207047,0.00020564,2]
[391000399,1760279341139,10000.01,0.00020564,2]
[391000400,1760279341163,10000.01,0.00020564,2]
[391000401,1760279341186,802.62449983,0.00020564,2]
[391000402,1760279362051,200.0,0.0002051,2]
[391000413,1760279432220,-260.46624924,0.00021,2]
[391000414,1760279432229,-201.99,0.00021,2]
[391000415,1760279432238,-294.85477171,0.00021,2]
[391000416,1760279432247,-169.28764352,0.00021399,2]
[391000417,1760279432256,-151.79882479,0.00021399,2]
[391000526,1760279438211,-348.20117521,0.00021399,2]
[391000527,1760279438221,-484.79877839,0.00021399,2]
[391000528,1760279438234,-15.20122161,0.00021399,2]
[391000529,1760279438244,-457.60311989,0.00021399,2]
[391000530,1760279438256,-42.39688011,0.00021399,2]
[391000531,1760279438265,-500.0,0.00021399,2]
[391000532,1760279438276,-500.0,0.00021399,2]
[391000533,1760279438286,-500.0,0.00021399,2]
[391000534,1760279438295,-500.0,0.00021399,2]
[391000535,1760279438305,-10442.40088319,0.000214,2]
[391000536,1760279438317,-526.46954481,0.000214,2]
[391000542,1760279440735,-4823.23305746,0.000214,2]
[391000562,1760279446368,-1113.8,0.000214,2]
[391000566,1760279451262,320.0,0.00021,2]
[391000571,1760279576976,500.0,0.00019497,2]
[391000572,1760279637502,1453.874846,0.00020358,2]
[391000576,1760279822589,300.0,0.00020999,2]
[391000577,1760279882839,300.0,0.00020999,2]
[391000580,1760279942972,300.0,0.00020999,2]
[391000581,1760280002202,300.0,0.00020999,2]
[391000582,1760280007883,306.0,0.00020999,2]
[391000583,1760280071963,300.0,0.00020999,2]
[391000584,1760280087666,2144.2540783,0.00020476,2]
[391000585,1760280122659,300.0,0.00020999,2]
[391000586,1760280164878,408.06,0.00027397,120]
[391000588,1760280273133,46500.0,0.00027,120]
[391000589,1760280286728,273.390142,0.00020306,2]
[391000590,1760280303683,300.0,0.00020999,2]
[391000591,1760280349738,970.121669,0.00013699,2]
[391000592,1760280349979,970.121669,0.00020187,2]
[391000593,1760280362378,300.0,0.00020999,2]
[391000596,1760280422409,300.0,0.00020999,2]
[391000598,1760280482453,300.0,0.00020999,2]
[391000599,1760280586047,1000.0,0.00020458,5]
[391000614,1760280633207,-1979.00056979,0.00021,2]
[391000615,1760280633219,-8670.99943021,0.00021,2]
[391000616,1760280633228,-285.22923618,0.00021,2]
[391000617,1760280633239,-171.69304529,0.00021077,2]
[391000618,1760280633249,-1463.82071191,0.00021137,2]
[391000619,1760280633258,-217.0,0.00021199,2]
[391000620,1760280633268,-217.0,0.00021222,2]
[391000621,1760280633277,-500.0,0.00021273,2]
[391000622,1760280633287,-500.0,0.00021273,2]
[391000624,1760280633296,-500.0,0.00021273,2]
[391000626,1760280633305,-500.0,0.00021273,2]
[391000628,1760280633314,-500.0,0.00021273,2]
[391000630,1760280633323,-500.0,0.00021273,2]
[391000632,1760280633333,-500.0,0.00021273,2]
[391000635,1760280633342,-500.0,0.00021273,2]
[391000637,1760280633351,-500.0,0.00021273,2]
[391000639,1760280633360,-217.0,0.00021284,2]
[391000641,1760280633369,-1035.43646693,0.00021287,2]
[391000643,1760280633379,-4251.44,0.0002129,10]
[391000645,1760280633389,-217.0,0.00021298,2]
[391000647,1760280633403,-500.0,0.00021299,2]
[391000649,1760280633412,-431.77910522,0.00021299,2]
[391000651,1760280633421,-427.37366992,0.00021299,2]
[391000653,1760280633430,-300.0,0.000213,12]
[391000655,1760280633440,-300.0,0.000213,12]
[391000657,1760280633454,-2200.92654662,0.000213,2]
[391000659,1760280633463,-6255.55229244,0.000213,2]
[391000661,1760280633473,-57257.06786091,0.000213,2]
[391000830,1760280638486,-193.04051928,0.00021199,2]
[391000831,1760280638496,-500.0,0.00021299,2]
[391000832,1760280638506,-197.77995062,0.00021299,2]
[391000833,1760280638517,-500.0,0.00021299,2]
[391000834,1760280638531,-500.0,0.00021299,2]
[391000835,1760280638540,-257.00793809,0.00021299,2]
[391000836,1760280638550,-500.0,0.00021299,2]
[391000837,1760280638559,-500.0,0.00021299,2]
[391000838,1760280638569,-500.0,0.00021299,2]
[391000839,1760280638578,-500.0,0.00021299,2]
[391000840,1760280638587,-13883.11590191,0.000213,2]
[391000841,1760280638599,-3996.84289167,0.000213,2]
[391000842,1760280638611,-2948.95264953,0.000213,2]
[391000843,1760280640526,-611.87702191,0.00021299,2]
[391000844,1760280640537,-23858.11622019,0.000213,2]
[391000845,1760280640586,-1915.62984208,0.000213,2]
[391000889,1760280646423,-4827.15,0.0002129,10]
[391000890,1760280646434,-419161.15742802,0.000213,2]
[391000891,1760280646444,-500.0,0.00021373,2]
[391000892,1760280646456,-500.0,0.00021373,2]
[391000893,1760280646465,-501.39815425,0.00021373,2]
[391000894,1760280646477,-501.27033853,0.00021373,2]
[391000895,1760280646486,-500.66271068,0.00021373,2]
[391000896,1760280646495,-504.95082876,0.00021373,2]
[391000897,1760280646504,-500.0,0.00021373,2]
[391000898,1760280646514,-500.0,0.00021373,2]
[391000899,1760280646524,-500.0,0.00021373,2]
[391000900,1760280646533,-500.0,0.00021373,2]
[391000901,1760280646543,-500.0,0.00021373,2]
[391000902,1760280646552,-500.0,0.00021373,2]
[391000903,1760280646561,-502.41453798,0.00021373,2]
[391000904,1760280646570,-500.91451526,0.00021373,2]
[391000905,1760280646579,-345.47078889,0.00021373,2]
[391000906,1760280646587,-500.0,0.00021373,2]
[391000907,1760280646596,-503.78777992,0.00021373,2]
[391000908,1760280646606,-500.0,0.00021373,2]
[391000909,1760280646614,-500.86341301,0.00021373,2]
[391000910,1760280646623,-500.0,0.00021373,2]
[391000911,1760280646633,-13151.44340866,0.00021373,2]
[391000912,1760280646642,-402.2877588,0.00021377,10]
[391000913,1760280646655,-217.0,0.00021385,2]
[391000914,1760280646665,-500.0,0.00021387,2]
[391000915,1760280646674,-1000.0,0.00021387,2]
[391000916,1760280646683,-151.0,0.00021387,2]
[391000917,1760280646692,-1000.0,0.00021387,2]
[391000918,1760280646701,-151.0,0.00021387,2]
[391000919,1760280646713,-250.0,0.00021387,2]
[391000920,1760280646722,-1000.0,0.00021387,2]
[391000921,1760280646731,-151.0,0.00021387,2]
[391000922,1760280646740,-18603.8837,0.00021387,2]
[391000923,1760280646751,-151.0,0.00021387,2]
[391000924,1760280646760,-500.0,0.00021387,2]
[391000925,1760280646770,-1000.0,0.00021387,2]
[391000926,1760280646779,-151.0,0.00021387,2]
[391000927,1760280646789,-250.0,0.00021387,2]
[391000928,1760280646798,-500.0,0.00021387,2]
[391000929,1760280646808,-185.05224795,0.00021387,2]
[391000930,1760280646817,-1000.0,0.00021387,2]
[391000931,1760280646827,-151.0,0.00021387,2]
[391000932,1760280646836,-500.0,0.00021387,2]
[391000933,1760280646846,-1000.0,0.00021387,2]
[391000934,1760280646855,-155.97975996,0.00021387,2]
[391000935,1760280646864,-500.0,0.00021387,2]
[391000936,1760280646874,-1000.0,0.00021387,2]
[391000937,1760280646884,-151.0,0.00021387,2]
[391000938,1760280646893,-500.0,0.00021387,2]
[391000939,1760280646902,-250.0,0.00021387,2]
[391000940,1760280646912,-151.0,0.00021387,2]
[391000941,1760280646921,-500.0,0.00021387,2]
[391000942,1760280646931,-250.0,0.00021387,2]
[391000943,1760280646940,-151.0,0.00021387,2]
[391000944,1760280646950,-250.0,0.00021387,2]
[391000945,1760280646962,-500.0,0.00021387,2]
[391000946,1760280646971,-151.0,0.00021387,2]
[391000947,1760280646980,-500.0,0.00021387,2]
[391000948,1760280646990,-151.0,0.00021387,2]
[391000949,1760280646999,-500.0,0.00021387,2]
[391000950,1760280647009,-151.0,0.00021387,2]
[391000951,1760280647018,-500.0,0.00021387,2]
[391000952,1760280647027,-151.0,0.00021387,2]
[391000953,1760280647036,-500.0,0.00021387,2]
[391000954,1760280647046,-151.0,0.00021387,2]
[391000955,1760280647055,-500.0,0.00021387,2]
[391000956,1760280647065,-155.786338,0.00021387,2]
[391000957,1760280647074,-500.0,0.00021387,2]
[391000958,1760280647084,-500.0,0.00021387,2]
[391000959,1760280647094,-518.84593601,0.00021387,2]
[391000960,1760280647104,-500.0,0.00021387,2]
[391000961,1760280647114,-500.0,0.00021387,2]
[391000962,1760280647124,-500.0,0.00021387,2]
[391000963,1760280647133,-500.0,0.00021387,2]
[391000964,1760280647143,-500.0,0.00021387,2]
[391000965,1760280647152,-500.0,0.00021387,2]
[391000966,1760280647162,-500.0,0.00021387,2]
[391000967,1760280647172,-500.0,0.00021387,2]
[391000968,1760280647182,-500.0,0.00021387,2]
[391000969,1760280647192,-500.0,0.00021387,2]
[391000970,1760280647201,-1000.0,0.00021387,2]
[391000971,1760280647214,-500.0,0.00021387,2]
[391000972,1760280647225,-1000.0,0.00021387,2]
[391000973,1760280647235,-500.0,0.00021387,2]
[391000974,1760280647246,-1000.0,0.00021387,2]
[391000975,1760280647256,-500.0,0.00021387,2]
[391000976,1760280647266,-1000.0,0.00021387,2]
[391000977,1760280647276,-500.0,0.00021387,2]
[391000978,1760280647287,-500.0,0.00021387,2]
[391000979,1760280647297,-500.0,0.00021387,2]
[391000980,1760280647307,-500.0,0.00021387,2]
[391000981,1760280647317,-500.0,0.00021387,2]
[391000982,1760280647326,-1430.06,0.0002139,3]
[391000983,1760280647336,-1091.37,0.0002139,3]
[391000984,1760280647345,-545.68,0.0002139,3]
[391000985,1760280647354,-272.84,0.0002139,3]
[391000986,1760280647363,-818.55,0.0002139,3]
[391000987,1760280647372,-408.41,0.0002139,3]
[391000988,1760280647382,-805.00805652,0.00021397,2]
[391000989,1760280647392,-205.50379909,0.000214,2]
[391000990,1760280647405,-34220.09651454,0.000214,2]
[391000991,1760280647414,-370000.0,0.000214,2]
[391000992,1760280647423,-391.9198272,0.000214,2]
[391000993,1760280647432,-391.8516513,0.000214,2]
[391000994,1760280647443,-761.0190396,0.000214,2]
[391000995,1760280647452,-200.0,0.000214,10]
[391000996,1760280647463,-200.0,0.000214,10]
[391000997,1760280647473,-2200.92654659,0.0002145,2]
[391000998,1760280647482,-217.0,0.00021475,2]
[391000999,1760280647492,-217.0,0.00021496,2]
[391001000,1760280647501,-189.7609727,0.00021496,2]
[391001001,1760280647510,-189.7609727,0.00021496,2]
[391001002,1760280647520,-21965.14354,0.000215,2]
[391001003,1760280647529,-217.0,0.00021511,2]
[391001004,1760280647539,-316.71,0.00021515,2]
[391001005,1760280647548,-217.0,0.00021517,2]
[391001006,1760280647558,-151.0,0.00021567,2]
[391001007,1760280647567,-173.5979126,0.00021567,2]
[391001008,1760280647576,-500.0,0.00021567,2]
[391001009,1760280647586,-151.0,0.00021567,2]
[391001010,1760280647595,-800.0,0.0002158,2]
[391001011,1760280647604,-217.0,0.00021581,2]
[391001012,1760280647613,-151.0,0.000216,3]
[391001013,1760280647745,-2200.92654659,0.000216,2]
[391001014,1760280647755,-328.01362161,0.000216,2]
[391001015,1760280647764,-151.56421726,0.00021622,2]
[391001016,1760280647774,-500.0,0.00021622,2]
[391001017,1760280647784,-151.0,0.00021622,2]
[391001018,1760280647793,-1152.4889107,0.00021634,2]
[391001019,1760280647802,-991.8571601,0.00021634,2]
[391001020,1760280647812,-500.0,0.00021661,2]
[391001021,1760280647822,-500.0,0.00021677,2]
[391001022,1760280647831,-245.0,0.00021677,2]
[391001023,1760280647840,-500.0,0.00021689,2]
[391001024,1760280647850,-2088.78532203,0.00021697,3]
[391001025,1760280647859,-402.2877588,0.00021697,3]
[391001027,1760280647868,-1000.0,0.00021698,2]
[391001029,1760280647877,-1000.0,0.00021698,2]
[391001030,1760280647887,-678.5151,0.00021698,2]
[391001031,1760280647897,-151.0,0.000217,2]
[391001032,1760280647906,-151.0,0.000217,2]
[391001033,1760280647915,-151.0,0.000217,3]
[391001034,1760280647925,-300.0,0.00021715,20]
[391001035,1760280647934,-300.0,0.00021715,20]
[391001036,1760280647943,-300.0,0.00021715,20]
[391001037,1760280647955,-300.0,0.00021715,20]
[391001038,1760280647964,-300.0,0.00021715,20]
[391001039,1760280647974,-300.0,0.00021715,20]
[391001040,1760280647983,-300.0,0.00021715,20]
[391001041,1760280647993,-300.0,0.00021715,20]
[391001042,1760280648004,-300.0,0.00021715,20]
[391001043,1760280648013,-300.0,0.00021715,20]
[391001044,1760280648022,-300.0,0.00021715,20]
[391001045,1760280648031,-300.0,0.00021715,20]
[391001046,1760280648040,-300.0,0.00021715,20]
[391001047,1760280648049,-300.0,0.00021715,20]
[391001049,1760280648059,-300.0,0.00021715,20]
[391001050,1760280648068,-217.0,0.0002173,2]
[391001051,1760280648077,-500.0,0.00021731,2]
[391001052,1760280648087,-2200.92654659,0.0002175,2]
[391001053,1760280648096,-250.0,0.00021764,2]
[391001054,1760280648105,-500.0,0.00021786,2]
[391001055,1760280648115,-6259.5284346,0.00021787,2]
[391001056,1760280648125,-151.0,0.000218,3]
[391001057,1760280648135,-151.0,0.000218,4]
[391001058,1760280648144,-1000.0,0.00021807,2]
[391001059,1760280648153,-1000.0,0.00021807,2]
[391001060,1760280648162,-1000.0,0.00021807,2]
[391001061,1760280648174,-1000.0,0.00021807,2]
[391001062,1760280648183,-1000.0,0.00021807,2]
[391001063,1760280648192,-1000.0,0.00021807,2]
[391001064,1760280648206,-1000.0,0.00021807,2]
[391001065,1760280648215,-1000.0,0.00021807,2]
[391001066,1760280648224,-1000.0,0.00021807,2]
[391001067,1760280648234,-1000.0,0.00021807,2]
[391001068,1760280648243,-1000.0,0.00021807,2]
[391001069,1760280648253,-1000.0,0.00021807,2]
[391001070,1760280648262,-1000.0,0.00021807,2]
[391001071,1760280648272,-1000.0,0.00021807,2]
[391001072,1760280648281,-161.61740377,0.00021807,2]
[391001073,1760280648290,-151.0,0.00021807,2]
[391001074,1760280648300,-151.0,0.00021807,2]
[391001075,1760280648310,-151.0,0.00021807,2]
[391001076,1760280648319,-151.0,0.00021807,2]
[391001077,1760280648328,-151.0,0.00021807,2]
[391001078,1760280648339,-151.0,0.00021807,2]
[391001079,1760280648348,-151.0,0.00021807,2]
[391001080,1760280648357,-151.70593602,0.00021807,2]
[391001081,1760280648367,-4197.0,0.00021809,2]
[391001082,1760280648376,-2167.202,0.00021809,2]
[391001083,1760280648385,-632.99,0.00021809,2]
[391001084,1760280648395,-150.0,0.00021809,2]
[391001085,1760280648409,-500.0,0.00021821,2]
[391001086,1760280648418,-500.0,0.00021821,2]
[391001087,1760280648427,-1000.0,0.00021821,2]
[391001088,1760280648436,-457.2860564,0.00021821,2]
[391001089,1760280648446,-405.24828615,0.00021821,2]
[391001090,1760280648456,-151.5851244,0.00021821,2]
[391001091,1760280648466,-1000.0,0.00021821,2]
[391001092,1760280648475,-1000.0,0.00021821,2]
[391001093,1760280648485,-208.55715187,0.00021836,5]
[391001094,1760280648494,-209.02457101,0.00021841,2]
[391001095,1760280648504,-623.96702174,0.00021845,2]
[391001096,1760280648513,-600.0,0.00021846,20]
[391001097,1760280648522,-500.0,0.00021849,2]
[391001098,1760280648531,-5021.54639634,0.0002185,2]
[391001099,1760280648548,-1234.00589608,0.0002185,2]
[391001100,1760280648558,-151.0,0.000219,3]
[391001101,1760280648567,-0.65568311,0.000219,4]
[391001102,1760280648578,-150.34431689,0.000219,4]
[391001103,1760280648587,-1286.44427966,0.000219,2]
[391001107,1760280653787,666.0,0.00020921,2]
[391001108,1760280661526,150.0,0.00019136,2]
[391001109,1760280662020,150.0,0.00020047,2]
[391001110,1760280662633,150.0,0.00020959,2]
[391001112,1760280723440,500.0,0.00019298,2]
[391001113,1760280735850,150.0,0.00018776,2]
[391001114,1760280736306,150.0,0.0001967,2]
[391001115,1760280736730,20.1224417,0.00020564,2]
[391001116,1760280736757,129.8775583,0.00020564,2]
[391001117,1760280806694,150.0,0.00018699,2]
[391001118,1760280807128,150.0,0.00019589,2]
[391001119,1760280807551,150.0,0.0002048,2]
[391001122,1760280875159,150.0,0.00018688,2]
[391001123,1760280875578,150.0,0.00019578,2]
[391001124,1760280876011,150.0,0.00020468,2]
[391001128,1760280942654,150.0,0.00018681,2]
[391001129,1760280943601,150.0,0.00019571,2]
[391001130,1760281016468,5000.0,0.00021,2]
[391001131,1760281026643,160.0,0.0002,3]
[391001133,1760281109008,500.0,0.00019298,2]
[391001136,1760281258222,2436.0,0.00021,2]
[391001137,1760281281502,704.01,0.00021,2]
[391001138,1760281281527,4295.99,0.00021,2]
[391001139,1760281293030,480.0,0.00021,2]
[391001140,1760281304370,5000.0,0.00021,2]
[391001141,1760281327758,5000.0,0.00021,2]
[391001142,1760281350368,0.01,0.00021,2]
[391001143,1760281350395,4999.99,0.00021,2]
[391001144,1760281373188,5000.0,0.00021,2]
[391001145,1760281396185,5000.0,0.00021,2]
[391001148,1760281418789,0.01,0.00021,2]
[391001149,1760281418816,4309.05857011,0.00021,2]
[391001150,1760281419594,1000.0,0.00020196,2]
[391001155,1760281558153,3010.50278921,0.0002,2]
[391001172,1760281832710,-751.66,0.00021013,2]
[391001173,1760281832719,-302.45696356,0.00021013,2]
[391001174,1760281832729,-284.0,0.00021013,2]
[391001175,1760281832742,-284.0,0.00021159,2]
[391001176,1760281832756,-284.0,0.00021192,2]
[391001177,1760281832765,-284.0,0.00021192,2]
[391001178,1760281832776,-300.0,0.00021196,2]
[391001179,1760281832786,-300.0,0.00021196,2]
[391001180,1760281832795,-300.0,0.00021196,2]
[391001181,1760281832805,-1200.0,0.00021196,2]
[391001182,1760281832815,-300.0,0.00021196,2]
[391001183,1760281832825,-300.0,0.00021196,2]
[391001184,1760281832835,-38523.72672185,0.00021197,2]
[391001185,1760281832844,-1316.18057769,0.00021198,2]
[391001186,1760281832855,-178.41,0.00021263,2]
[391001187,1760281832864,-203.86,0.00021272,2]
[391001188,1760281832873,-637.71554564,0.00021273,2]
[391001189,1760281832882,-450.22464386,0.00021273,2]
[391001190,1760281832891,-501.22884778,0.00021273,2]
[391001191,1760281832900,-500.0,0.00021273,2]
[391001192,1760281832909,-183.71619394,0.00021273,2]
[391001193,1760281832919,-500.0,0.00021273,2]
[391001194,1760281832928,-500.2607671,0.00021273,2]
[391001197,1760281832937,-417.20128313,0.00021273,2]
[391001200,1760281832946,-500.0,0.00021273,2]
[391001203,1760281832955,-342.56588263,0.00021273,2]
[391001205,1760281832964,-500.0,0.00021273,2]
[391001206,1760281832973,-500.0,0.00021273,2]
[391001207,1760281832983,-632.56765264,0.00021273,2]
[391001208,1760281832992,-500.0,0.00021273,2]
[391001209,1760281833002,-200.37215413,0.00021273,2]
[391001210,1760281833011,-500.0,0.00021273,2]
[391001211,1760281833021,-500.0,0.00021273,2]
[391001212,1760281833030,-500.0,0.00021273,2]
[391001213,1760281833039,-16207.62704622,0.00021274,2]
[391001214,1760281833051,-1431.20921018,0.00021274,2]
[391001215,1760281833066,-965.0474436,0.00021274,2]
[391001216,1760281833288,-325.4437564,0.00021275,2]
[391001217,1760281833300,-284.69791963,0.00021275,2]
[391001218,1760281833309,-500.0,0.00021275,2]
[391001219,1760281833319,-500.0,0.00021275,2]
[391001220,1760281833330,-500.0,0.00021275,2]
[391001221,1760281833339,-500.0,0.00021275,2]
[391001222,1760281833351,-500.0,0.00021275,2]
[391001223,1760281833361,-500.0,0.00021275,2]
[391001224,1760281833371,-500.0,0.00021275,2]
[391001225,1760281833380,-500.0,0.00021275,2]
[391001226,1760281833389,-500.0,0.00021275,2]
[391001227,1760281833399,-331.10887515,0.00021275,2]
[391001228,1760281833408,-500.0,0.00021275,2]
[391001229,1760281833417,-500.0,0.00021275,2]
[391001230,1760281833426,-500.0,0.00021275,2]
[391001231,1760281833436,-500.0,0.00021275,2]
[391001232,1760281833566,-504.65113243,0.00021275,2]
[391001233,1760281833576,-500.0,0.00021275,2]
[391001234,1760281833586,-229.79632648,0.00021275,2]
[391001235,1760281833596,-500.0,0.00021275,2]
[391001236,1760281833607,-500.0,0.00021275,2]
[391001237,1760281833617,-319.98241493,0.00021275,2]
[391001238,1760281833627,-500.0,0.00021275,2]
[391001239,1760281833637,-197.73831396,0.00021275,2]
[391001240,1760281833646,-402.2877588,0.00021277,10]
[391001241,1760281833655,-1113.31,0.00021277,3]
[391001242,1760281833665,-556.66,0.00021277,3]
[391001243,1760281833674,-98.62344841,0.00021277,3]
[391001244,1760281833717,-161.93777355,0.00021275,2]
[391001245,1760281833726,-179.70655159,0.00021277,3]
[391001246,1760281833735,-490.56756175,0.00021277,3]
[391001247,1760281833751,-344.43243825,0.00021277,3]
[391001248,1760281833760,-500.0,0.00021286,2]
[391001249,1760281833770,-500.0,0.00021286,2]
[391001250,1760281833779,-299.16156894,0.00021286,2]
[391001251,1760281833789,-152.24537366,0.00021286,2]
[391001252,1760281833798,-12791.29798668,0.00021287,2]
[391001253,1760281833828,-1480.000025,0.00021277,10]
[391001528,1760281838618,-3148.359975,0.00021277,10]
[391001530,1760281838628,-41.29890106,0.00021287,2]
[391001532,1760281838639,-7984.76565366,0.00021287,2]
[391001534,1760281838651,-1133.60906219,0.00021287,2]
[391001536,1760281838663,-348049.02839641,0.00021287,2]
[391001539,1760281838673,-603.7560424,0.00021298,2]
[391001541,1760281838682,-284.0,0.00021305,2]
[391001543,1760281838691,-1316.18057765,0.00021374,2]
[391001545,1760281838700,-293.94773224,0.0002149,2]
[391001547,1760281838711,-653.40930232,0.000215,2]
[391001548,1760281838720,-438.53,0.0002151,2]
[391001550,1760281838729,-1316.18057765,0.00021549,2]
[391001552,1760281838738,-500.0,0.0002156,2]
[391001554,1760281838751,-347.82550809,0.00021613,2]
[391001557,1760281838760,-173.79828642,0.00021637,2]
[391001558,1760281838770,-300.0,0.00021697,20]
[391001559,1760281838779,-300.0,0.00021697,20]
[391001560,1760281838790,-300.0,0.00021697,20]
[391001562,1760281838800,-300.0,0.00021697,20]
[391001564,1760281838809,-300.0,0.00021697,20]
[391001565,1760281838819,-300.0,0.00021697,20]
[391001568,1760281838830,-300.0,0.00021697,20]
[391001569,1760281838839,-300.0,0.00021697,20]
[391001571,1760281838850,-300.0,0.00021697,20]
[391001573,1760281838859,-300.0,0.00021697,20]
[391001575,1760281838869,-300.0,0.00021697,20]
[391001577,1760281838878,-300.0,0.00021697,20]
[391001579,1760281838887,-300.0,0.00021697,20]
[391001580,1760281838897,-300.0,0.00021697,20]
[391001582,1760281838906,-300.0,0.00021697,20]
[391001584,1760281838915,-630.0,0.00021707,2]
[391001585,1760281838925,-2160.0,0.00021707,2]
[391001586,1760281838934,-4197.0,0.00021707,2]
[391001587,1760281838943,-600.0,0.00021712,20]
[391001588,1760281838952,-1316.18057765,0.00021725,2]
[391001589,1760281838961,-284.0,0.00021807,2]
[391001590,1760281838971,-151.2622725,0.00021817,2]
[391001591,1760281838979,-9384.2615849,0.00021817,2]
[391001592,1760281838989,-1608.2595531,0.00021817,2]
[391001593,1760281838998,-1708.3331522,0.00021817,2]
[391001594,1760281839007,-500.0,0.00021821,2]
[391001595,1760281839016,-1000.0,0.00021821,2]
[391001596,1760281839025,-1000.0,0.00021821,2]
[391001597,1760281839034,-1000.0,0.00021821,2]
[391001598,1760281839043,-1000.0,0.00021821,2]
[391001599,1760281839053,-488.71083355,0.00021821,2]
[391001600,1760281839062,-1000.0,0.00021821,2]
[391001601,1760281839071,-1000.0,0.00021821,2]
[391001602,1760281839081,-570.55470382,0.00021821,2]
[391001603,1760281839090,-19292.2273969,0.00021822,2]
[391001604,1760281839102,-500.0,0.00021834,2]
[391001605,1760281839111,-151.0,0.00021841,2]
[391001606,1760281839121,-198.54520826,0.00021841,2]
[391001607,1760281839130,-500.0,0.00021841,2]
[391001608,1760281839139,-151.24075468,0.00021841,2]
[391001609,1760281839149,-152.7130094,0.00021841,2]
[391001610,1760281839158,-500.0,0.00021841,2]
[391001611,1760281839168,-186.2997453,0.00021841,2]
[391001612,1760281839178,-151.0,0.00021841,2]
[391001613,1760281839187,-202.9582812,0.00021841,2]
[391001614,1760281839317,-150.153,0.00021859,2]
[391001615,1760281839327,-150.0,0.00021859,2]
[391001616,1760281839336,-150.9,0.00021859,2]
[391001617,1760281839346,-981.484,0.00021859,2]
[391001618,1760281839358,-151.0,0.00021896,2]
[391001619,1760281839368,-500.0,0.00021896,2]
[391001620,1760281839377,-500.0,0.00021896,2]
[391001621,1760281839389,-151.0,0.00021896,2]
[391001622,1760281839399,-151.0,0.000219,4]
[391001623,1760281839408,-151.0,0.000219,3]
[391001624,1760281839418,-151.0,0.000219,3]
[391001625,1760281839427,-7482.04583109,0.000219,3]
[391001626,1760281839436,-2088.78532203,0.000219,3]
[391001627,1760281839445,-402.2877588,0.000219,3]
[391001628,1760281839455,-1316.18057765,0.000219,2]
[391001629,1760281839465,-1000.0,0.000219,2]
[391001630,1760281839475,-1500.0,0.00021917,10]
[391001631,1760281839484,-319.13730499,0.0002192,2]
[391001632,1760281839494,-217.0,0.00021938,2]
[391001633,1760281839505,-151.0,0.00021951,2]
[391001634,1760281839514,-500.0,0.00021951,2]
[391001635,1760281839523,-500.0,0.00021951,2]
[391001636,1760281839532,-198.0,0.00021951,2]
[391001637,1760281839543,-500.0,0.00021973,2]
[391001638,1760281839552,-367.88781146,0.00021973,2]
[391001639,1760281839561,-501.47230702,0.00021973,2]
[391001640,1760281839570,-500.0,0.00021973,2]
[391001641,1760281839579,-500.0,0.00021973,2]
[391001642,1760281839588,-571.11934018,0.00021973,2]